Cogmind - Beta 12 @@@ ROGUE MODE // 2023.08.18 @ 12:37:43 Player: porridge Result: Destroyed by D-53 Grenadier with Mini Grenade Launcher Performance ------------- Evolutions (0) 0 Regions Visited (2) 400 Robots Destroyed (7) 35 Value Destroyed (161) 161 Prototype IDs (0) 0 Alien Tech Used (0) 0 Bonus (0) 0 TOTAL SCORE: 596 Bonus ------- None Cogmind --------- Core Integrity 0/250 Matter 300/300 Energy 98/100 System Corruption 11% Temperature Cool (0) Movement Core (50) Location -10/Mines Parts ------- > --- POWER (1) -------- (None) > --- PROPULSION (2) --- (None) > --- UTILITY (2) ------ (None) > --- WEAPON (2) ------- (None) > --- INVENTORY (5) ---- Ion Engine Flexi-carbon Leg Flexi-carbon Leg Assault Rifle Grenade Launcher Peak State ------------ > --- POWER ------------ Light Nuclear Core > --- PROPULSION ------- Aluminum Leg Aluminum Leg > --- UTILITY ---------- Improved Heat Sink Small Storage Unit > --- WEAPON ----------- Small Laser Rocket Launcher > --- INVENTORY -------- Ion Engine Flexi-carbon Leg Flexi-carbon Leg Assault Rifle Grenade Launcher [Rating: 13] Favorites ----------- Power Light Ion Engine Engine Light Ion Engine Power Core Light Nuclear Core Propulsion Light Treads Treads Light Treads Leg Aluminum Leg Utility Small Storage Unit Device Seismic Detector Storage Small Storage Unit Weapon Medium Laser Energy Gun Medium Laser Launcher Grenade Launcher Build | -11 -10 -10 ------- Run | Jun Mat Min Slots Evolved . | . . . Power . | . . . Propulsion . | . . . Utility . | . . . Weapon . | . . . Parts Attached 15 | 6 1 8 Power 3 | 1 . 2 Engine 2 | 1 . 1 Core 1 | . . 1 Reactor . | . . . Propulsion 4 | 2 . 2 Treads 2 | 2 . . Leg 2 | . . 2 Wheel . | . . . Hover . | . . . Flight . | . . . Utility 3 | 1 1 1 Device 2 | . 1 1 Storage 1 | 1 . . Processor . | . . . Hackware . | . . . Protection . | . . . Artifact . | . . . Weapon 5 | 2 . 3 Energy Gun 3 | 2 . 1 Energy Cannon . | . . . Ballistic Gun . | . . . Ballistic Cannon . | . . . Launcher 2 | . . 2 Special Weapon . | . . . Impact Weapon . | . . . Slashing Weapon . | . . . Piercing Weapon . | . . . Special Melee Weapon . | . . . Unidentified Prototypes . | . . . Parts Lost 14 | . . 14 Power 3 | . . 3 Propulsion 4 | . . 4 Utility 3 | . . 3 Weapon 4 | . . 4 Highest Loss Streak 7 | . . 7 To Critical Strikes . | . . . Average Slot Usage (%) 95 | . 96 94 Engine 12 | . 14 11 Core 1 | . . 2 Treads 25 | . 28 21 Leg 2 | . . 4 Device 11 | . 10 12 Storage 13 | . 14 13 Energy Gun 21 | . 28 13 Launcher 6 | . . 13 Naked Turns . | . . . Heaviest Build 16 | 11 12 16 Greatest Support 40 | 40 40 40 Greatest Overweight (x) 1 | . . 1 Average Overweight (x) . | . . . Largest Inventory Capacity 8 | 8 8 8 Average Capacity 7 | 7 8 7 Most Carried 8 | 7 8 8 Average Carried 6 | 6 6 7 Final Capacity 8 | 8 8 5 Final Carried 8 | 6 8 5 Class Distribution -------------------- 100% | Mutant Dominant Class ---------------- Mutant | -10/Materials Mutant | -10/Mines Resources | -11 -10 -10 ----------- Run | Jun Mat Min Matter Collected 376 | 251 13 112 Remotely . | . . . Salvage Created 261 | . 157 104 Parts 19 | . 14 5 Haulers Intercepted . | . . . Recyclers Shooed . | . . . Parts Field Recycled . | . . . Retrieved Matter . | . . . Parts Self-Destructed . | . . . Prevented . | . . . Kills | -11 -10 -10 ------- Run | Jun Mat Min Combat Hostiles Destroyed 20 | . 3 17 Guns 5 | . 3 2 AOE 15 | . . 15 Classes Destroyed 4 | . 2 2 Watcher 1 | . 1 . Swarmer 3 | . . 3 Grunt 3 | . 3 . Assembled 14 | . . 14 Best Kill Streak 14 | . 3 14 Combat Bots Only 14 | . 3 14 Max Kills in Single Turn 7 | . 1 7 Gunslinging . | . . . Exploded 7 | . . 7 Melee . | . . . Uniques/NPCs Destroyed . | . . . Combat | -11 -10 -10 -------- Run | Jun Mat Min Damage Taken 1322 | . 129 1193 Core 256 | . . 256 Absorbed by Shields . | . . . Core Remaining (%) 100 | 100 . . Volleys Fired 23 | . 14 9 Largest 2 | . 2 2 Hottest 90 | . 90 80 Shots Fired 43 | . 28 15 Gun 37 | . 28 9 Cannon . | . . . Launcher 6 | . . 6 Special . | . . . Kinetic . | . . . Thermal 37 | . 28 9 Explosive 6 | . . 6 Electromagnetic . | . . . Robot Hit Streak 8 | . 8 3 Robot Miss Streak 6 | . 3 6 Penetration Max . | . . . Secondary Targets . | . . . Shots Hit Robots 24 | . 19 5 Core Hits 39 | . 10 29 Critical Kills . | . . . Critical Parts Destroyed . | . . . Critical Strikes 2 | . 2 . Burn 2 | . 2 . Melee Attacks . | . . . Impact . | . . . Slashing . | . . . Piercing . | . . . Sneak Attacks . | . . . Combat Hostiles . | . . . Follow-up Attacks . | . . . Damage Inflicted 1016 | . 226 790 Guns 278 | . 221 57 Cannons . | . . . Explosions 731 | . . 731 Melee . | . . . Ramming 7 | . 5 2 Kinetic . | . . . Thermal 278 | . 221 57 Explosive 731 | . . 731 Electromagnetic . | . . . Impact . | . . . Slashing . | . . . Piercing . | . . . Highest Corruption 11 | . . 11 Average Corruption 10 | . . 10 Corruption Purged . | . . . Corruption Blocked . | . . . Effects 3 | . . 3 Matter Fused 1 | . . 1 Data Loss (minor) 1 | . . 1 Alerts 1 | . . 1 Overload Shots . | . . . Overflow Damage 5 | . . 5 Projectiles . | . . . Explosions 5 | . . 5 Melee . | . . . Knockbacks . | . . . Impact . | . . . Kinetic . | . . . Secondary . | . . . Self-Inflicted Damage 76 | . . 76 Shots 3 | . . 3 Rammed 3 | . 2 1 Targets Rammed 3 | . 2 1 Kicked . | . . . Crushed . | . . . Highest Temperature 174 | . 174 60 Average Temperature 66 | . 83 19 Received Heat Transfer 147 | . 87 60 Siege Activations . | . . . Robots Corrupted . | . . . Combat Hostiles . | . . . Parts Fried . | . . . Impact Corruptions . | . . . Robots Melted . | . . . Combat Hostiles . | . . . Parts Melted 1 | . 1 . Heat Transferred 868 | . 731 137 Parts Sabotaged . | . . . Parts Stolen . | . . . Parts Stripped . | . . . Power Chain Reactions . | . . . Missiles Intercepted . | . . . Alert | -11 -10 -10 ------- Run | Jun Mat Min Peak Influence 169 | . 136 169 Initial 52 | . . 52 Average 27 | . 45 144 Maximum Alert Level . | . . . Low Security (%) 100 | 100 100 100 Level 1 . | . . . Level 2 . | . . . Level 3 . | . . . Level 4 . | . . . Level 5 . | . . . High Security . | . . . Max Security . | . . . Squads Dispatched 1 | . 1 . Investigation . | . . . Extermination . | . . . Reinforcement 1 | . 1 . Assault . | . . . Garrison . | . . . Intercept . | . . . Searches Triggered . | . . . Construction Impeded . | . . . Haulers Reinforced . | . . . Active Scanning Responses . | . . . Cargo Convoy Interrupts . | . . . Stealth | -11 -10 -10 --------- Run | Jun Mat Min Distress Signals . | . . . Communications Jammed . | . . . Distress Signals . | . . . Times Spotted 30 | . 7 23 Peak Tracking Total 15 | . 3 15 Tactical Retreats . | . . . Traps | -11 -10 -10 ------- Run | Jun Mat Min Traps Triggered . | . . . Indirectly . | . . . Trap Hack Attempts . | . . . Triggered . | . . . Disarmed . | . . . Reprogrammed . | . . . Reused . | . . . Traps Extracted . | . . . Installed . | . . . Triggered . | . . . Machines | -11 -10 -10 ---------- Run | Jun Mat Min Machines Disabled . | . . . Max in Single Turn . | . . . Machines Repaired . | . . . Machines Sabotaged . | . . . Overloaded Fab Kills . | . . . Hacking | -11 -10 -10 --------- Run | Jun Mat Min Machines Accessed 3 | . 3 . Terminals 3 | . 3 . Fabricators . | . . . Repair Stations . | . . . Recycling Units . | . . . Scanalyzers . | . . . Garrison Access . | . . . Total Hacks 7 | . 7 . Successful 4 | . 4 . Failed 3 | . 3 . Catastrophic 1 | . 1 . Database Lockouts . | . . . Manual . | . . . Terminals 7 | . 7 . Fabricators . | . . . Repair Stations . | . . . Recycling Units . | . . . Scanalyzers . | . . . Garrison Access . | . . . Terminal Hacks 4 | . 4 . Record 2 | . 2 . Robot Analysis 1 | . 1 . Alert Level 1 | . 1 . Fabricator Hacks . | . . . Repair Station Hacks . | . . . Recycling Unit Hacks . | . . . Scanalyzer . | . . . Garrison Access Hacks . | . . . Unauthorized Hacks . | . . . Terminals . | . . . Fabricators . | . . . Repair Stations . | . . . Recycling Units . | . . . Scanalyzers . | . . . Garrison Access . | . . . Data Cores Recovered . | . . . Used . | . . . Hacking Detections 2 | . 2 . Full Trace Events . | . . . Feedback Events . | . . . Feedback Blocked . | . . . Robot Schematics Acquired . | . . . Robots Built . | . . . Authchips . | . . . Time . | . . . Total Robot Build Rating . | . . . Part Schematics Acquired . | . . . Parts Built . | . . . Authchips . | . . . Time . | . . . Total Part Build Rating . | . . . Parts Repaired . | . . . Time . | . . . Parts Recycled . | . . . Recycled Matter . | . . . Retrieved Matter . | . . . Retrieved Components . | . . . Parts Scanalyzed . | . . . Part Schematics Acquired . | . . . Parts Damaged . | . . . Bothacking | -11 -10 -10 ------------ Run | Jun Mat Min Used RIF Installer . | . . . Robots Hacked . | . . . Non-combat . | . . . Combat . | . . . Robot Hacks Applied . | . . . Relay Couplers Released . | . . . Fabnet Peak Effective % . | . . . Robots Rewired . | . . . Allies Hacked . | . . . Hacks Repelled . | . . . Allies | -11 -10 -10 -------- Run | Jun Mat Min Total Allies . | . . . Largest Group . | . . . Highest-Rated Group . | . . . Highest-Rated Ally . | . . . Total Orders . | . . . Ally Attacks . | . . . Total Damage . | . . . Kills . | . . . Allies Corrupted . | . . . Allies Melted . | . . . Intel | -11 -10 -10 ------- Run | Jun Mat Min Robot Analysis Total 1 | . 1 . Derelict Logs Recovered . | . . . Drone Launches . | . . . Drone Recoveries . | . . . Exploration | -11 -10 -10 ------------- Run | Jun Mat Min Turns Passed 2234 | 1565 356 313 Spaces Moved 948 | 577 188 183 Core 21 | 9 . 12 Treads 893 | 568 188 137 Legs 34 | . . 34 Wheels . | . . . Hover . | . . . Flight . | . . . Fastest Speed 50 | 50 160 50 Average Speed 156 | 158 160 147 Slowest Speed 160 | 160 160 160 Overloaded Moves . | . . . Propulsion Burnouts . | . . . Robots Hopped . | . . . Cave-ins Triggered . | . . . Exploration Rate (%) 35 | 43 29 35 Regions Visited 2 Branch Regions 1 Pre-discovered Areas . | . . . Known Exits Taken . | . . . Unknown Exits Taken 2 | 1 1 . Scrap Searched 1 | . . 1 Spaces Dug . | . . . Terrain Destroyed 53 | . . 53 Melee . | . . . Projectile . | . . . AOE 53 | . . 53 Terrain Rammed . | . . . Walls Destroyed . | . . . Machines Disabled . | . . . Actions | -11 -10 -10 --------- Run | Jun Mat Min Total 1652 | 1226 215 211 Wait 646 | 637 5 4 Move 946 | 576 187 183 Hop . | . . . Pick Up 16 | 7 4 5 Fast Attach 6 | 5 1 . Attach 8 | 1 . 7 Detach . | . . . Swap 1 | . . 1 Drop 3 | . 2 1 Fire 23 | . 14 9 Melee . | . . . Ram . | . . . Kick . | . . . Crush 3 | . 2 1 Escape Stasis . | . . . Rewire . | . . . Trap . | . . . Miscellaneous . | . . . Route ------- -11/Junkyard -10/Materials -10/Mines History --------- Turn | Location | Event 2 | -11/Junkyard | Met Revision 17 5 | -11/Junkyard | Discovered new exit (range 15) 1566 | -11/Junkyard | Entered Materials 1567 | -10/Materials | Build established: Mutant 1860 | -10/Materials | Discovered new exit (range 14) 1922 | -10/Materials | Entered Mines 2069 | -10/Mines | Received a Rocket Launcher from a helpful Derelict 2138 | -10/Mines | Assembled infested the area 2143 | -10/Mines | Assisted by a Guerilla fighting off Assembled 2164 | -10/Mines | System corruption reached 10% 2205 | -10/Mines | Destroyed 14 combat bots 2210 | -10/Mines | Lost 7 parts (2p2n1u2w) 2230 | -10/Mines | Core integrity fell below 50% 2234 | -10/Mines | Core integrity fell below 20% 2235 | -10/Mines | Destroyed by D-53 Grenadier with Mini Grenade Launcher Last Messages --------------- Acquired Grenade Launcher. Acquired 8 matter. Acquired Assault Rifle. Acquired 9 matter. Acquired 1 matter. Acquired 7 matter. Acquired Flexi-carbon Leg. Acquired 40 matter. The unstable cave ceiling collapses. Acquired Flexi-carbon Leg. Acquired 9 matter. System corrupted: IFF burst signal emitted. Rocket Launcher destroyed. Sml. Storage Unit destroyed. Aluminum Leg destroyed. Sml. Laser destroyed. Aluminum Leg destroyed. The unstable cave ceiling collapses. Lgt. Nuclear Core destroyed. Imp. Heat Sink destroyed. Map ----- +----------------------------------------------------+ | | | | | | | | | | | | | | | | | | | | | | | ?????????????????????????????????????????????????? | | ?????????????????????????????????????????????????? | | ?????????????????????????????????????????????????? | | ??????????????????????####???????????????????????? | | ??????????????????????# ##??????????????????????? | | ?????????????????????? ##?????????????????????? | | ??????????????????????? #?????????????????????? | | ??????????????????????? #?????????????????????? | | ???????????????????????< #?????????????????????? | | ####???????############# #??????????????????????? | | #####?### ## #??????????????????????? | | ## ### ##?????????????????????? | | ###???????????????????? | | ##??????????????????? | | # @ #??????????????????? | | ### % #???????????? | | ##?## # = ##???????????? | | #???# ##????????????? | | ????######### ### ???????????? | | ????????????#t #?##### ##??????????? | | ????????????# #??????? #??????????? | | ????????????# % #???????? #??????????? | | ???????????# d d # ???????? ##???????????? | | ???????? = % ???????? #???????????? | | ???????? =%! ????????=????????????? | | #????????# | ?????????????????????? | | #????????## ### ?????????????????????? | | ??????????# ??## #### ??????????????????????? | | ??????????? ???## #??????????????????????????? | | ???????????? ?????# ???????????????????????????? | | ?????????????????????????????????????????????????? | | #????????????????????????????????????????????????? | | ##???????????????????????????????????????????????? | | #???????????????????????????????????????????????? | | #???????????????????????????????????????????????? | | ##???????????????????????????????????????????????? | | #????????????????????????????????????????????????? | | ?????????????????????????????????????????????????? | | ?????????????????????????????????????????????????? | +----------------------------------------------------+ Best States ------------- Heat Dissipation 39 Energy Generation 14 Energy Capacity 160 Matter Stores 300 Matter Capacity 300 Sight Range 16 Terrain Scan Density 10 Evasion (%) 55 Recoil Reduction 2 Item Schematics ----------------- None Robot Schematics ------------------ None Fabricated ------------ Nothing Alien Tech Used ----------------- None Achievements -------------- Quick And Dirty Challenges ------------ None Game ------ Seed WarpMagneticStick Manual? 0 Play Time 00:23:11 Cumulative 3.5 hours Start 2023.08.18 @ 12:14:05 End 2023.08.18 @ 12:37:43 Sessions 1 Manual Loads 0 Difficulty Rogue Special Mode None Game No. 4 Rogue 4 Adventurer 0 Explorer 0 Win Type - Total 0 Types 0/0/0/0/0/0/0/0/0 Lore% 0 Gallery% 4 Achievement% 6 Wizard Run 0 Options --------- ASCII 0 Keyboard 0 Movement Arrows Keybinds 0 Fullscreen 1 Font 18/SmallcapsGlow Map View 76x50 Tactical HUD 0 Map Filters NONE Filters NONE Steam 1 RUN: 4b8dc802-8f08-4c90-896f-75a8aebdd5a1